fUSD/lending_fUSD_20250221
["ID","MTS","AMOUNT","RATE_DAILY","PERIOD"]
[353879396,1740109833073,-150.0,0.00012441,2]
[353879397,1740109833082,-14191.30321234,0.00012465,2]
[353879398,1740109833092,-150.0,0.00012499,2]
[353879399,1740109833101,-150.0,0.00012499,2]
[353879400,1740109833110,-166.33,0.00012527,2]
[353879401,1740109833119,-150.0,0.00012565,2]
[353879402,1740109833128,-150.0,0.00012565,2]
[353879403,1740109833138,-205.05140187,0.00012567,2]
[353879404,1740109833147,-150.0,0.00012578,2]
[353879405,1740109833157,-922.1,0.00012597,2]
[353879406,1740109833166,-547.31482576,0.000126,2]
[353879407,1740109833176,-1000.0,0.00012617,2]
[353879408,1740109833186,-150.0,0.0001263,2]
[353879409,1740109833195,-150.0,0.0001263,2]
[353879410,1740109833204,-150.0,0.00012639,2]
[353879411,1740109833213,-150.0,0.00012656,2]
[353879412,1740109833223,-150.0,0.00012695,2]
[353879413,1740109833232,-150.0,0.00012695,2]
[353879414,1740109833241,-150.0,0.00012714,2]
[353879415,1740109833251,-6533.87534271,0.00012719,2]
[353879416,1740109833260,-512.91,0.00012746,2]
[353879417,1740109833270,-150.0,0.0001276,2]
[353879418,1740109833280,-150.0,0.0001276,2]
[353879419,1740109833290,-1000.0,0.00012777,2]
[353879420,1740109833299,-1060.0,0.00012813,2]
[353879421,1740109833309,-150.0,0.00012825,2]
[353879422,1740109833318,-150.0,0.00012825,2]
[353879423,1740109833327,-14191.30321234,0.00012842,2]
[353879424,1740109833337,-150.0,0.00012851,2]
[353879425,1740109833346,-150.0,0.0001289,2]
[353879426,1740109833356,-150.0,0.0001289,2]
[353879427,1740109833366,-150.0,0.00012895,2]
[353879428,1740109833376,-165.04806518,0.00012912,2]
[353879429,1740109833385,-150.0,0.00012914,2]
[353879430,1740109833394,-150.0,0.00012955,2]
[353879431,1740109833403,-150.0,0.00012955,2]
[353879432,1740109833412,-150.0,0.00012988,2]
[353879433,1740109833421,-150.0,0.00012988,2]
[353879434,1740109833431,-574239.92341303,0.00013,2]
[353879435,1740109833440,-150.75,0.00013,2]
[353879436,1740109833449,-150.75,0.00013,2]
[353879437,1740109833459,-150.75,0.00013,2]
[353879438,1740109833469,-150.75,0.00013,2]
[353879439,1740109833478,-6533.87534271,0.00013012,2]
[353879440,1740109833487,-1000.0,0.00013012,2]
[353879441,1740109833497,-150.0,0.0001302,2]
[353879442,1740109833506,-150.0,0.0001302,2]
[353879443,1740109833515,-334.05,0.00013043,2]
[353879444,1740109833526,-150.0,0.00013062,2]
[353879445,1740109833535,-150.0,0.00013065,2]
[353879446,1740109833544,-150.0,0.00013085,2]
[353879447,1740109833554,-150.0,0.00013085,2]
[353879448,1740109833563,-1000.0,0.00013099,2]
[353879449,1740109833572,-150.0,0.00013124,2]
[353879450,1740109833581,-931.2147162,0.0001313,2]
[353879451,1740109833590,-196.52014266,0.0001315,2]
[353879452,1740109833600,-575.0,0.0001315,2]
[353879453,1740109833610,-150.0,0.0001315,2]
[353879454,1740109833619,-150.0,0.0001315,2]
[353879455,1740109833628,-150.0,0.00013216,2]
[353879456,1740109833637,-150.0,0.00013216,2]
[353879457,1740109833647,-14191.30321234,0.0001322,2]
[353879458,1740109833656,-205.05140187,0.00013233,2]
[353879459,1740109833665,-1000.0,0.00013261,2]
[353879460,1740109833675,-150.0,0.00013261,2]
[353879461,1740109833685,-150.0,0.00013281,2]
[353879462,1740109833695,-150.0,0.00013281,2]
[353879463,1740109833704,-6533.87534271,0.00013304,2]
[353879464,1740109833714,-150.0,0.00013306,2]
[353879465,1740109833723,-150.75,0.00013314,2]
[353879466,1740109833733,-150.75,0.00013314,2]
[353879467,1740109833742,-615.06166935,0.00013324,2]
[353879468,1740109833751,-500.0,0.00013324,2]
[353879469,1740109833761,-500.0,0.00013324,2]
[353879470,1740109833770,-500.0,0.00013324,2]
[353879471,1740109833780,-500.0,0.00013324,2]
[353879472,1740109833790,-500.0,0.00013324,2]
[353879473,1740109833799,-500.0,0.00013324,2]
[353879474,1740109833808,-500.0,0.00013324,2]
[353879475,1740109833817,-500.0,0.00013324,2]
[353879476,1740109833826,-500.0,0.00013324,2]
[353879477,1740109833836,-500.0,0.00013324,2]
[353879478,1740109833845,-500.0,0.00013324,2]
[353879479,1740109833854,-500.0,0.00013324,2]
[353879480,1740109833863,-500.0,0.00013324,2]
[353879481,1740109833872,-500.0,0.00013324,2]
[353879482,1740109833881,-500.0,0.00013324,2]
[353879483,1740109833891,-500.0,0.00013324,2]
[353879484,1740109833900,-500.0,0.00013324,2]
[353879485,1740109833909,-500.0,0.00013324,2]
[353879486,1740109833918,-500.0,0.00013324,2]
[353879487,1740109833930,-500.0,0.00013324,2]
[353879488,1740109833939,-500.0,0.00013324,2]
[353879489,1740109833948,-500.0,0.00013324,2]
[353879490,1740109833957,-500.0,0.00013324,2]
[353879491,1740109833968,-500.0,0.00013324,2]
[353879492,1740109833978,-500.0,0.00013324,2]
[353879493,1740109833987,-500.0,0.00013324,2]
[353879494,1740109833996,-500.0,0.00013324,2]
[353879495,1740109834006,-500.0,0.00013324,2]
[353879496,1740109834016,-500.0,0.00013324,2]
[353879497,1740109834027,-500.0,0.00013324,2]
[353879498,1740109834036,-500.0,0.00013324,2]
[353879499,1740109834046,-500.0,0.00013324,2]
[353879500,1740109834055,-500.0,0.00013324,2]
[353879501,1740109834065,-500.0,0.00013324,2]
[353879502,1740109834074,-500.0,0.00013324,2]
[353879503,1740109834083,-500.0,0.00013324,2]
[353879504,1740109834093,-500.0,0.00013324,2]
[353879505,1740109834102,-500.0,0.00013324,2]
[353879506,1740109834111,-993.0,0.00013324,2]
[353879507,1740109834121,-500.0,0.00013324,2]
[353879508,1740109834130,-500.0,0.00013324,2]
[353879509,1740109834139,-500.0,0.00013324,2]
[353879510,1740109834148,-500.0,0.00013324,2]
[353879511,1740109834158,-500.0,0.00013324,2]
[353879512,1740109834167,-500.0,0.00013324,2]
[353879513,1740109834176,-500.0,0.00013324,2]
[353879514,1740109834186,-500.0,0.00013324,2]
[353879515,1740109834195,-685.0,0.00013324,2]
[353879516,1740109834205,-55555.0,0.00013324,2]
[353879517,1740109834215,-5000.0,0.00013324,2]
[353879518,1740109834224,-150.0,0.00013346,2]
[353879519,1740109834233,-150.0,0.00013346,2]
[353879520,1740109834242,-450.28,0.0001335,2]
[353879521,1740109834252,-150.0,0.00013366,2]
[353879522,1740109834261,-306.06,0.0001337,2]
[353879523,1740109834270,-150.0,0.00013398,2]
[353879524,1740109834280,-1000.0,0.000134,2]
[353879525,1740109834289,-150.0,0.00013411,2]
[353879526,1740109834298,-150.0,0.00013411,2]
[353879527,1740109834308,-150.75,0.00013414,2]
[353879528,1740109834317,-150.75,0.00013414,2]
[353879529,1740109834326,-1000.0,0.00013423,2]
[353879530,1740109834335,-300.0,0.00013423,2]
[353879531,1740109834344,-2016.91091705,0.00013424,3]
[353879532,1740109834354,-380.785607,0.00013424,2]
[353879533,1740109834363,-161.218667,0.00013424,2]
[353879534,1740109834373,-156.24193,0.00013424,2]
[353879535,1740109834383,-287.371936,0.00013424,2]
[353879536,1740109834392,-151.0,0.00013424,2]
[353879537,1740109834402,-151.0,0.00013424,2]
[353879538,1740109834412,-151.0,0.00013424,2]
[353879539,1740109834421,-151.0,0.00013424,2]
[353879540,1740109834431,-151.0,0.00013424,2]
[353879541,1740109834441,-151.0,0.00013424,2]
[353879542,1740109834450,-151.0,0.00013424,2]
[353879543,1740109834459,-151.0,0.00013424,2]
[353879544,1740109834469,-500.0,0.00013424,2]
[353879545,1740109834479,-500.0,0.00013424,2]
[353879546,1740109834488,-613.6264334,0.00013424,2]
[353879547,1740109834498,-153.587751,0.00013424,2]
[353879548,1740109834507,-153.587751,0.00013424,2]
[353879549,1740109834517,-513.21590407,0.00013424,2]
[353879550,1740109834526,-153.587751,0.00013424,2]
[353879551,1740109834535,-153.587751,0.00013424,2]
[353879552,1740109834545,-500.70770639,0.00013424,2]
[353879553,1740109834554,-500.0,0.00013424,2]
[353879554,1740109834564,-500.0,0.00013424,2]
[353879555,1740109834573,-500.0,0.00013424,2]
[353879556,1740109834583,-500.0,0.00013424,2]
[353879557,1740109834592,-151.0,0.00013424,2]
[353879558,1740109834601,-151.0,0.00013424,2]
[353879559,1740109834610,-500.0,0.00013424,2]
[353879560,1740109834620,-645.61265881,0.00013424,2]
[353879561,1740109834629,-501.89166199,0.00013424,2]
[353879562,1740109834638,-151.578952,0.00013424,2]
[353879563,1740109834648,-501.60655663,0.00013424,2]
[353879564,1740109834657,-500.0,0.00013424,2]
[353879565,1740109834666,-221.55457639,0.00013424,2]
[353879566,1740109834675,-500.0,0.00013424,2]
[353879567,1740109834685,-500.0,0.00013424,2]
[353879568,1740109834694,-500.0,0.00013424,2]
[353879569,1740109834704,-500.0,0.00013424,2]
[353879570,1740109834714,-252.25756897,0.00013424,2]
[353879571,1740109834723,-203.78548592,0.00013424,2]
[353879572,1740109834732,-500.0,0.00013424,2]
[353879573,1740109834742,-500.0,0.00013424,2]
[353879574,1740109834751,-500.94787269,0.00013424,2]
[353879575,1740109834761,-500.0,0.00013424,2]
[353879576,1740109834771,-501.45400021,0.00013424,2]
[353879577,1740109834780,-503.45264922,0.00013424,2]
[353879578,1740109834790,-503.38528506,0.00013424,2]
[353879579,1740109834799,-500.0,0.00013424,2]
[353879580,1740109834808,-397.94357986,0.00013424,2]
[353879581,1740109834818,-257.4165986,0.00013424,2]
[353879582,1740109834827,-500.0,0.00013424,2]
[353879583,1740109834837,-500.0,0.00013424,2]
[353879584,1740109834846,-526.96080817,0.00013424,2]
[353879585,1740109834855,-305.39379025,0.00013424,2]
[353879586,1740109835020,-162.52311859,0.00013424,2]
[353879587,1740109835030,-500.0,0.00013424,2]
[353879588,1740109835039,-502.17742562,0.00013424,2]
[353879589,1740109835048,-500.0,0.00013424,2]
[353879590,1740109835057,-500.0,0.00013424,2]
[353879591,1740109835067,-500.0,0.00013424,2]
[353879592,1740109835076,-509.62731136,0.00013424,2]
[353879593,1740109835085,-500.0,0.00013424,2]
[353879594,1740109835095,-500.0,0.00013424,2]
[353879595,1740109835104,-500.0,0.00013424,2]
[353879596,1740109835118,-500.0,0.00013424,2]
[353879597,1740109835133,-500.0,0.00013424,2]
[353879598,1740109835142,-501.01302062,0.00013424,2]
[353879599,1740109835152,-528.28695618,0.00013424,2]
[353879600,1740109835161,-554.86974079,0.00013424,2]
[353879601,1740109835170,-500.0,0.00013424,2]
[353879602,1740109835179,-500.0,0.00013424,2]
[353879603,1740109835188,-500.99461337,0.00013424,2]
[353879604,1740109835197,-500.0,0.00013424,2]
[353879605,1740109835207,-500.0,0.00013424,2]
[353879606,1740109835216,-500.0,0.00013424,2]
[353879607,1740109835225,-502.67676906,0.00013424,2]
[353879608,1740109835234,-500.0,0.00013424,2]
[353879609,1740109835243,-500.0,0.00013424,2]
[353879610,1740109835253,-500.0,0.00013424,2]
[353879611,1740109835262,-500.0,0.00013424,2]
[353879612,1740109835272,-507.5904011,0.00013424,2]
[353879613,1740109835282,-500.0,0.00013424,2]
[353879614,1740109835292,-501.73558141,0.00013424,2]
[353879615,1740109835301,-500.0,0.00013424,2]
[353879616,1740109835312,-500.0,0.00013424,2]
[353879617,1740109835321,-500.0,0.00013424,2]
[353879618,1740109835331,-500.0,0.00013424,2]
[353879619,1740109835340,-500.0,0.00013424,2]
[353879620,1740109835350,-500.0,0.00013424,2]
[353879621,1740109835359,-500.0,0.00013424,2]
[353879622,1740109835369,-373.68560848,0.00013424,2]
[353879623,1740109835378,-500.0,0.00013424,2]
[353879624,1740109835387,-500.0,0.00013424,2]
[353879625,1740109835396,-500.0,0.00013424,2]
[353879626,1740109835406,-500.0,0.00013424,2]
[353879627,1740109835416,-504.01348686,0.00013424,2]
[353879628,1740109835429,-500.0,0.00013424,2]
[353879629,1740109835442,-500.0,0.00013424,2]
[353879630,1740109835451,-500.0,0.00013424,2]
[353879631,1740109835460,-500.0,0.00013424,2]
[353879632,1740109835471,-502.4614489,0.00013424,2]
[353879633,1740109835481,-500.0,0.00013424,2]
[353879634,1740109835490,-503.7474179,0.00013424,2]
[353879635,1740109835499,-500.0,0.00013424,2]
[353879636,1740109835508,-507.29437799,0.00013424,2]
[353879637,1740109835517,-502.41474292,0.00013424,2]
[353879638,1740109835528,-500.0,0.00013424,2]
[353879639,1740109835537,-500.0,0.00013424,2]
[353879640,1740109835546,-500.57089907,0.00013424,2]
[353879641,1740109835558,-500.0,0.00013424,2]
[353879642,1740109835567,-500.0,0.00013424,2]
[353879643,1740109835576,-269.73346401,0.00013424,2]
[353879644,1740109835585,-500.0,0.00013424,2]
[353879645,1740109835594,-500.0,0.00013424,2]
[353879646,1740109835604,-500.0,0.00013424,2]
[353879647,1740109835613,-500.0,0.00013424,2]
[353879648,1740109835625,-500.0,0.00013424,2]
[353879649,1740109835635,-500.0,0.00013424,2]
[353879650,1740109835645,-500.0,0.00013424,2]
[353879651,1740109835656,-501.65606246,0.00013424,2]
[353879652,1740109835665,-500.0,0.00013424,2]
[353879653,1740109835674,-500.0,0.00013424,2]
[353879654,1740109835683,-500.0,0.00013424,2]
[353879655,1740109835694,-500.0,0.00013424,2]
[353879656,1740109835704,-500.0,0.00013424,2]
[353879657,1740109835714,-500.0,0.00013424,2]
[353879658,1740109835726,-500.0,0.00013424,2]
[353879659,1740109835735,-500.0,0.00013424,2]
[353879660,1740109835745,-500.0,0.00013424,2]
[353879661,1740109835755,-500.0,0.00013424,2]
[353879662,1740109835765,-599.72807189,0.00013424,2]
[353879663,1740109835775,-500.0,0.00013424,2]
[353879664,1740109835784,-500.0,0.00013424,2]
[353879665,1740109835796,-269.17446453,0.00013424,2]
[353879666,1740109835807,-500.0,0.00013424,2]
[353879667,1740109835818,-500.0,0.00013424,2]
[353879668,1740109835827,-500.0,0.00013424,2]
[353879669,1740109835836,-500.0,0.00013424,2]
[353879670,1740109835845,-500.0,0.00013424,2]
[353879671,1740109835854,-500.0,0.00013424,2]
[353879672,1740109835863,-597.15374542,0.00013424,2]
[353879673,1740109835873,-500.0,0.00013424,2]
[353879674,1740109835883,-500.0,0.00013424,2]
[353879675,1740109835892,-500.0,0.00013424,2]
[353879676,1740109835902,-500.0,0.00013424,2]
[353879677,1740109835911,-500.0,0.00013424,2]
[353879678,1740109835920,-500.0,0.00013424,2]
[353879679,1740109835932,-500.0,0.00013424,2]
[353879680,1740109835941,-500.0,0.00013424,2]
[353879681,1740109835950,-500.0,0.00013424,2]
[353879682,1740109835959,-500.0,0.00013424,2]
[353879683,1740109835968,-500.0,0.00013424,2]
[353879684,1740109835978,-500.0,0.00013424,2]
[353879685,1740109835987,-500.0,0.00013424,2]
[353879686,1740109835996,-521.57,0.00013424,2]
[353879687,1740109836006,-500.0,0.00013424,2]
[353879688,1740109836016,-500.0,0.00013424,2]
[353879689,1740109836026,-574.39,0.00013424,2]
[353879690,1740109836035,-500.0,0.00013424,2]
[353879691,1740109836044,-500.0,0.00013424,2]
[353879692,1740109836053,-500.0,0.00013424,2]
[353879693,1740109836063,-500.0,0.00013424,2]
[353879694,1740109836072,-500.0,0.00013424,2]
[353879695,1740109836081,-500.0,0.00013424,2]
[353879696,1740109836090,-500.0,0.00013424,2]
[353879697,1740109836100,-500.0,0.00013424,2]
[353879698,1740109836109,-500.0,0.00013424,2]
[353879699,1740109836119,-500.0,0.00013424,2]
[353879700,1740109836128,-500.0,0.00013424,2]
[353879701,1740109836138,-500.0,0.00013424,2]
[353879702,1740109836148,-500.0,0.00013424,2]
[353879703,1740109836157,-500.0,0.00013424,2]
[353879704,1740109836166,-500.0,0.00013424,2]
[353879705,1740109836175,-500.0,0.00013424,2]
[353879706,1740109836185,-500.0,0.00013424,2]
[353879707,1740109836194,-500.0,0.00013424,2]
[353879708,1740109836203,-500.0,0.00013424,2]
[353879709,1740109836212,-500.0,0.00013424,2]
[353879710,1740109836223,-536.61,0.00013424,2]
[353879711,1740109836232,-500.0,0.00013424,2]
[353879712,1740109836241,-500.0,0.00013424,2]
[353879713,1740109836250,-500.0,0.00013424,2]
[353879714,1740109836259,-500.0,0.00013424,2]
[353879715,1740109836268,-500.0,0.00013424,2]
[353879716,1740109836277,-500.0,0.00013424,2]
[353879717,1740109836287,-533.25,0.00013424,2]
[353879718,1740109836295,-572.52,0.00013424,2]
[353879719,1740109836305,-500.0,0.00013424,2]
[353879720,1740109836314,-500.0,0.00013424,2]
[353879721,1740109836323,-250.21120406,0.00013424,2]
[353879722,1740109836332,-503.83569361,0.00013424,2]
[353879723,1740109836341,-500.0,0.00013424,2]
[353879724,1740109836350,-500.0,0.00013424,2]
[353879725,1740109836358,-500.0,0.00013424,2]
[353879726,1740109836367,-506.63858468,0.00013424,2]
[353879727,1740109836376,-500.0,0.00013424,2]
[353879728,1740109836386,-505.32722145,0.00013424,2]
[353879729,1740109836395,-615.46,0.00013424,2]
[353879730,1740109836404,-500.0,0.00013424,2]
[353879731,1740109836413,-500.0,0.00013424,2]
[353879732,1740109836424,-500.0,0.00013424,2]
[353879733,1740109836433,-500.0,0.00013424,2]
[353879734,1740109836442,-500.0,0.00013424,2]
[353879735,1740109836452,-500.0,0.00013424,2]
[353879736,1740109836461,-500.0,0.00013424,2]
[353879737,1740109836471,-500.0,0.00013424,2]
[353879738,1740109836480,-500.0,0.00013424,2]
[353879739,1740109836489,-500.0,0.00013424,2]
[353879740,1740109836498,-500.0,0.00013424,2]
[353879741,1740109836507,-500.0,0.00013424,2]
[353879742,1740109836516,-562.48,0.00013424,2]
[353879743,1740109836526,-500.0,0.00013424,2]
[353879744,1740109836538,-577.67,0.00013424,2]
[353879745,1740109836549,-526.73797729,0.00013424,2]
[353879746,1740109836558,-500.0,0.00013424,2]
[353879747,1740109836567,-524.62,0.00013424,2]
[353879748,1740109836576,-500.0,0.00013424,2]
[353879749,1740109836586,-502.41253603,0.00013424,2]
[353879750,1740109836595,-500.0,0.00013424,2]
[353879751,1740109836604,-503.91469619,0.00013424,2]
[353879752,1740109836613,-500.0,0.00013424,2]
[353879753,1740109836622,-500.0,0.00013424,2]
[353879754,1740109836631,-500.0,0.00013424,2]
[353879755,1740109836641,-500.0,0.00013424,2]
[353879756,1740109836650,-500.0,0.00013424,2]
[353879757,1740109836659,-503.6986975,0.00013424,2]
[353879758,1740109836667,-273.62347276,0.00013424,2]
[353879759,1740109836677,-500.0,0.00013424,2]
[353879760,1740109836686,-500.0,0.00013424,2]
[353879761,1740109836695,-500.0,0.00013424,2]
[353879762,1740109836704,-500.0,0.00013424,2]
[353879763,1740109836712,-500.0,0.00013424,2]
[353879764,1740109836722,-500.0,0.00013424,2]
[353879765,1740109836731,-500.0,0.00013424,2]
[353879766,1740109836741,-500.0,0.00013424,2]
[353879767,1740109836751,-500.0,0.00013424,2]
[353879768,1740109836763,-500.0,0.00013424,2]
[353879769,1740109836772,-500.0,0.00013424,2]
[353879770,1740109836781,-500.0,0.00013424,2]
[353879771,1740109836790,-500.0,0.00013424,2]
[353879772,1740109836800,-500.0,0.00013424,2]
[353879773,1740109836810,-500.0,0.00013424,2]
[353879774,1740109836819,-500.0,0.00013424,2]
[353879775,1740109836829,-500.0,0.00013424,2]
[353879776,1740109836839,-500.0,0.00013424,2]
[353879777,1740109836848,-500.0,0.00013424,2]
[353879778,1740109836859,-500.0,0.00013424,2]
[353879779,1740109836868,-500.0,0.00013424,2]
[353879780,1740109836877,-544.66,0.00013424,2]
[353879781,1740109836887,-500.0,0.00013424,2]
[353879782,1740109836896,-500.0,0.00013424,2]
[353879783,1740109836905,-500.0,0.00013424,2]
[353879784,1740109836914,-500.0,0.00013424,2]
[353879785,1740109836923,-502.7744458,0.00013424,2]
[353879786,1740109836937,-500.0,0.00013424,2]
[353879787,1740109836946,-500.0,0.00013424,2]
[353879788,1740109836956,-500.0,0.00013424,2]
[353879789,1740109836967,-569.64,0.00013424,2]
[353879790,1740109836976,-503.68880427,0.00013424,2]
[353879791,1740109836985,-500.0,0.00013424,2]
[353879792,1740109836994,-500.0,0.00013424,2]
[353879793,1740109837003,-508.77916847,0.00013424,2]
[353879794,1740109837013,-500.0,0.00013424,2]
[353879795,1740109837022,-619.33,0.00013424,2]
[353879796,1740109837031,-500.0,0.00013424,3]
[353879797,1740109837040,-500.0,0.00013424,2]
[353879798,1740109837049,-500.0,0.00013424,2]
[353879799,1740109837058,-500.0,0.00013424,2]
[353879800,1740109837067,-500.0,0.00013424,2]
[353879801,1740109837076,-591.96,0.00013424,2]
[353879802,1740109837085,-500.0,0.00013424,2]
[353879803,1740109837095,-500.0,0.00013424,2]
[353879804,1740109837104,-500.0,0.00013424,2]
[353879805,1740109837113,-500.0,0.00013424,2]
[353879806,1740109837123,-500.0,0.00013424,2]
[353879807,1740109837131,-505.70831998,0.00013424,2]
[353879808,1740109837140,-500.0,0.00013424,2]
[353879809,1740109837149,-504.16141005,0.00013424,2]
[353879810,1740109837158,-500.0,0.00013424,2]
[353879811,1740109837167,-500.0,0.00013424,2]
[353879812,1740109837177,-500.0,0.00013424,2]
[353879813,1740109837186,-501.14536124,0.00013424,2]
[353879814,1740109837197,-500.0,0.00013424,2]
[353879815,1740109837206,-523.09918347,0.00013424,2]
[353879816,1740109837215,-503.38979527,0.00013424,2]
[353879817,1740109837225,-500.0,0.00013424,2]
[353879818,1740109837234,-500.0,0.00013424,2]
[353879819,1740109837243,-503.83779063,0.00013424,2]
[353879820,1740109837253,-500.0,0.00013424,2]
[353879821,1740109837262,-500.0,0.00013424,2]
[353879822,1740109837272,-502.66398302,0.00013424,2]
[353879823,1740109837282,-541.88760556,0.00013424,2]
[353879824,1740109837292,-500.0,0.00013424,2]
[353879825,1740109837301,-500.0,0.00013424,2]
[353879826,1740109837310,-500.0,0.00013424,2]
[353879827,1740109837319,-500.0,0.00013424,2]
[353879828,1740109837328,-500.0,0.00013424,2]
[353879829,1740109837338,-500.0,0.00013424,2]
[353879830,1740109837349,-311.00262159,0.00013424,2]
[353879831,1740109837358,-500.0,0.00013424,2]
[353879832,1740109837367,-500.0,0.00013424,2]
[353879833,1740109837377,-500.0,0.00013424,2]
[353879834,1740109837387,-502.33891589,0.00013424,2]
[353879835,1740109837396,-500.0,0.00013424,2]
[353879836,1740109837407,-500.0,0.00013424,2]
[353879837,1740109837416,-500.0,0.00013424,2]
[353879838,1740109837425,-222.48834621,0.00013424,2]
[353879839,1740109837435,-500.0,0.00013424,2]
[353879840,1740109837444,-158.490081,0.00013424,2]
[353879841,1740109837452,-500.0,0.00013424,2]
[353879842,1740109837462,-501.1497007,0.00013424,2]
[353879843,1740109837472,-500.0,0.00013424,2]
[353879844,1740109837481,-500.0,0.00013424,2]
[353879845,1740109837491,-500.0,0.00013424,2]
[353879846,1740109837500,-500.0,0.00013424,2]
[353879847,1740109837509,-502.79402517,0.00013424,2]
[353879848,1740109837519,-515.83509425,0.00013424,2]
[353879849,1740109837529,-500.0,0.00013424,2]
[353879850,1740109837538,-507.70554569,0.00013424,2]
[353879851,1740109837547,-500.65977523,0.00013424,2]
[353879852,1740109837556,-500.0,0.00013424,2]
[353879853,1740109837565,-500.0,0.00013424,2]
[353879854,1740109837574,-502.12216558,0.00013424,2]
[353879855,1740109837583,-500.0,0.00013424,2]
[353879856,1740109837592,-500.0,0.00013424,2]
[353879857,1740109837601,-500.0,0.00013424,2]
[353879858,1740109837611,-500.0,0.00013424,2]
[353879859,1740109837620,-637.69,0.00013424,2]
[353879860,1740109837629,-500.0,0.00013424,2]
[353879861,1740109837638,-500.0,0.00013424,2]
[353879862,1740109837647,-507.71660844,0.00013424,2]
[353879863,1740109837656,-500.0,0.00013424,2]
[353879864,1740109837665,-500.9158867,0.00013424,2]
[353879865,1740109837674,-500.0,0.00013424,2]
[353879866,1740109837683,-500.0,0.00013424,2]
[353879867,1740109837692,-500.0,0.00013424,2]
[353879868,1740109837701,-500.0,0.00013424,2]
[353879869,1740109837711,-500.0,0.00013424,2]
[353879870,1740109837720,-501.35886926,0.00013424,2]
[353879871,1740109837729,-500.0,0.00013424,2]
[353879872,1740109837738,-500.0,0.00013424,2]
[353879873,1740109837747,-502.22991189,0.00013424,2]
[353879874,1740109837757,-500.0,0.00013424,7]
[353879875,1740109837766,-500.0,0.00013424,2]
[353879876,1740109837775,-500.0,0.00013424,2]
[353879877,1740109837786,-500.0,0.00013424,2]
[353879878,1740109837795,-502.84602562,0.00013424,2]
[353879879,1740109837804,-501.7550184,0.00013424,2]
[353879880,1740109837814,-500.0,0.00013424,2]
[353879881,1740109837823,-500.0,0.00013424,2]
[353879882,1740109837832,-500.0,0.00013424,2]
[353879883,1740109837841,-500.0,0.00013424,2]
[353879884,1740109837850,-500.0,0.00013424,2]
[353879885,1740109837859,-501.93104811,0.00013424,2]
[353879886,1740109837868,-508.00935426,0.00013424,2]
[353879887,1740109837878,-500.0,0.00013424,2]
[353879888,1740109837887,-500.0,0.00013424,2]
[353879889,1740109837896,-599.47196631,0.00013424,2]
[353879890,1740109837905,-500.92934778,0.00013424,2]
[353879891,1740109837915,-500.0,0.00013424,2]
[353879892,1740109837924,-500.0,0.00013424,2]
[353879893,1740109837936,-500.0,0.00013424,2]
[353879894,1740109837945,-500.0,0.00013424,2]
[353879895,1740109837955,-501.67912265,0.00013424,2]